bitfinex/quotes_ETHUSD_20250625
["timestamp","ask_amount","ask_price","bid_price","bid_amount"]
[1750817262373,10.0,2460.4,2460.1,0.8101]
[1750817262587,10.0,2460.5,2460.1,4.87496057]
[1750817264414,10.0,2460.5,2460.2,4.06461317]
[1750817264712,14.06406356,2460.6,2460.1,4.87488646]
[1750817265215,10.0,2460.6,2460.1,0.8101]
[1750817265433,10.0,2460.6,2459.5,10.7467362]
[1750817265434,4.06447194,2460.4,2459.9,0.8119]
[1750817265582,10.74147194,2460.4,2459.9,4.87708715]
[1750817266288,10.74147194,2460.4,2459.9,0.8119]
[1750817266689,4.06455197,2460.3,2459.9,0.8119]
[1750817267409,4.06471297,2460.2,2459.9,0.8119]
[1750817267612,4.06471297,2460.2,2459.7,4.87435104]
[1750817267906,4.06471297,2460.2,2459.7,6.4364498]
[1750817268612,4.84783476,2460.3,2459.7,6.4364498]
[1750817268805,4.84783476,2460.3,2459.8,4.06533597]
[1750817269005,4.84783476,2460.3,2459.7,6.43651072]
[1750817269418,4.06432974,2460.5,2459.8,0.8056]
[1750817269720,6.678,2460.4,2460.0,0.818]
[1750817270017,10.74239713,2460.4,2460.0,0.818]
[1750817270218,6.678,2460.4,2460.0,0.818]
[1750817270423,4.06438436,2460.4,2460.0,0.818]
[1750817270727,10.0,2460.6,2460.0,4.8829856]
[1750817271024,20.74213272,2460.6,2460.1,4.57680912]
[1750817271326,20.74213695,2460.6,2460.1,4.57674529]
[1750817271820,7.78,2460.7,2460.2,0.818]
[1750817272133,10.0,2460.7,2460.2,4.88262795]
[1750817272293,10.0,2460.7,2460.3,4.06453482]
[1750817272482,14.06388515,2460.7,2460.2,5.77738045]
[1750817272679,2.22000515,2460.8,2460.5,4.06412444]
[1750817272910,2.22000515,2460.8,2460.3,4.88243459]
[1750817273118,2.22000515,2460.8,2460.4,0.57771946]
[1750817273292,2.22000515,2460.8,2460.5,4.06412662]
[1750817274385,2.22000515,2460.8,2460.4,4.06429264]
[1750817275114,2.22000515,2460.8,2460.5,4.06419848]
[1750817275310,2.22000515,2460.8,2460.4,4.0642929]
[1750817275502,2.22000515,2460.8,2460.5,4.06416502]
[1750817275694,2.22000515,2460.8,2460.4,4.06428863]
[1750817275903,2.22000515,2460.8,2460.4,5.04844349]
[1750817276230,2.22000515,2460.8,2460.4,0.98415486]
[1750817276399,2.22000515,2460.8,2460.6,0.8065]
[1750817277000,6.675,2460.7,2460.0,4.06504065]
[1750817277210,0.7751,2460.5,2459.7,4.0655196]
[1750817277413,4.06479977,2460.2,2459.8,0.58095196]
[1750817278422,4.06505883,2460.0,2459.7,0.7667]
[1750817278613,4.06505883,2460.0,2459.5,4.86396364]
[1750817279840,4.06495012,2460.1,2459.6,4.06562307]
[1750817280751,4.06495012,2460.1,2459.5,4.86396364]
[1750817280752,4.06495012,2460.1,2459.5,0.7982]
[1750817280753,4.06520628,2459.9,2459.5,0.7982]
[1750817281438,4.06510643,2460.0,2459.5,5.75709418]
[1750817283846,4.06496609,2460.1,2459.6,4.06570118]
[1750817284622,10.0,2460.3,2459.8,4.0652758]
[1750817284823,16.679,2460.3,2459.9,4.85210539]
[1750817285029,23.64487171,2461.4,2460.1,4.85175005]
[1750817285030,4.06329118,2461.1,2460.1,4.85175005]
[1750817285351,4.06329118,2461.1,2460.0,0.89173812]
[1750817285352,10.0,2461.0,2460.4,4.06434306]
[1750817285647,14.06346464,2461.0,2460.4,4.06434306]
[1750817286149,4.06206066,2461.9,2460.7,0.7803]
[1750817286347,4.06224682,2461.7,2461.3,0.7803]
[1750817286550,10.0,2461.6,2461.3,0.7803]
[1750817286729,10.0,2461.7,2461.3,4.84318064]
[1750817288326,4.36150143,2462.2,2461.3,4.84318064]
[1750817288327,4.0616148,2462.1,2461.5,4.06253116]
[1750817288542,10.76340849,2462.2,2461.5,4.95304909]
[1750817288853,4.06008932,2463.0,2462.1,0.8232]
[1750817289161,4.06071078,2462.7,2462.1,0.8232]
[1750817289330,4.06025417,2462.9,2462.1,0.8232]
[1750817289530,10.0,2462.6,2462.1,1.31170535]
[1750817289734,10.0,2462.6,2462.2,4.06139782]
[1750817290070,4.06067667,2462.7,2462.2,4.06139782]
[1750817290267,4.06044886,2462.8,2462.1,1.31170535]
[1750817290430,4.06077727,2462.6,2462.1,0.8232]
[1750817291851,10.0,2462.7,2462.1,0.8232]
[1750817292052,4.06085313,2462.6,2462.1,0.8232]
[1750817292248,10.0,2462.7,2462.1,0.8232]
[1750817292451,10.0,2462.7,2462.2,4.0613131]
[1750817293068,14.06060403,2462.7,2462.2,4.0613131]
[1750817293366,4.06076465,2462.6,2462.1,0.8232]
[1750817293519,14.06064259,2462.7,2462.1,5.77942387]
[1750817293966,4.06076191,2462.6,2462.1,1.71787152]
[1750817294167,4.0607488,2462.6,2462.1,0.8232]
[1750817294331,4.06189869,2462.0,2461.7,0.8001]
[1750817294528,10.0,2462.3,2461.7,4.86225]
[1750817294727,10.0,2462.3,2461.8,0.486225]
[1750817295384,6.702,2462.6,2461.8,0.486225]
[1750817295560,10.0,2462.6,2462.2,0.7686]
[1750817295867,4.06047217,2462.8,2462.2,4.82999205]
[1750817296038,10.0,2462.7,2462.2,4.82999205]
[1750817296229,4.06060356,2462.7,2462.2,5.71914464]
[1750817296569,4.06083452,2462.6,2462.2,1.65775259]
[1750817296738,4.06058391,2462.7,2462.2,0.7686]
[1750817296939,4.06099924,2462.5,2461.9,0.7564]
[1750817297142,4.06154395,2462.2,2461.9,0.7564]
[1750817297442,4.06132344,2462.3,2461.9,0.7564]
[1750817298029,4.06116502,2462.4,2461.9,0.7564]
[1750817298230,4.06116502,2462.4,2461.9,1.69309126]
[1750817298961,4.06116502,2462.4,2461.9,5.75499425]
[1750817299165,4.06116502,2462.4,2461.9,1.69309126]
[1750817299363,10.0,2462.8,2461.9,1.69309126]
[1750817299667,4.06110706,2462.4,2461.9,5.75496622]
[1750817299964,10.0,2462.8,2462.4,0.7829]
[1750817300169,10.0,2462.8,2462.4,4.84397267]
[1750817300962,10.0,2462.9,2462.4,4.84397267]
[1750817301168,14.06027388,2462.9,2462.4,4.84397267]
[1750817302037,0.20123663,2464.1,2462.4,1.67343501]
[1750817302272,4.05926893,2463.5,2462.8,4.06041831]
[1750817302449,10.0,2463.4,2462.9,0.7588]
[1750817302863,1.766,2463.7,2463.2,4.05967992]
[1750817303070,0.1391052,2464.3,2463.4,0.771]
[1750817303380,4.05928376,2463.5,2463.1,0.771]
[1750817303560,10.79369282,2463.9,2463.4,4.05942866]
[1750817303873,10.93511485,2464.3,2463.7,4.05885328]
[1750817304032,10.93511485,2464.3,2463.3,0.7663]
[1750817304033,10.93506192,2464.3,2463.6,4.05903753]
[1750817304231,11.34996619,2464.2,2463.4,4.05930967]
[1750817304459,14.05851379,2464.0,2463.4,4.059403]
[1750817305188,4.05902417,2463.7,2463.3,0.7663]
[1750817305358,4.05918047,2463.6,2463.3,0.7663]
[1750817305768,4.0590168,2463.7,2463.3,0.7663]
[1750817305988,4.05911017,2463.6,2463.3,0.7663]
[1750817306485,4.05878646,2463.8,2463.3,0.7663]
[1750817306486,4.05899031,2463.7,2463.3,0.7663]
[1750817306778,10.0,2463.9,2463.4,4.0593391]
[1750817307077,10.0,2464.0,2463.6,4.05909406]
[1750817307949,10.0,2464.0,2463.5,4.05918551]
[1750817308149,14.05844526,2464.0,2463.5,4.05918551]
[1750817308367,10.0,2464.0,2463.5,4.05918551]
[1750817308563,10.0,2464.0,2463.6,4.0590953]
[1750817309386,10.0,2464.0,2463.5,1.11325193]
[1750817309546,4.05886744,2463.8,2463.3,6.59088117]
[1750817310055,4.05873571,2463.9,2463.3,0.7663]
[1750817310383,4.05896375,2463.7,2463.3,0.7663]
[1750817311474,3.85896375,2463.7,2463.3,0.7663]
[1750817311683,3.85896375,2463.7,2463.3,1.42539975]
[1750817312053,4.05866255,2463.9,2463.4,4.05941437]
[1750817312863,14.05853078,2464.0,2463.5,4.05925402]
[1750817313062,14.05853078,2464.0,2463.4,4.05935125]
[1750817313280,10.0,2464.0,2463.5,4.05924908]
[1750817313507,14.05844688,2464.0,2463.6,0.81186756]
[1750817314503,14.05844688,2464.0,2463.4,4.05931016]
[1750817314804,10.0,2464.0,2463.5,4.05913072]
[1750817315893,14.05847652,2464.0,2463.5,4.05913072]
[1750817316398,0.8115,2464.4,2463.5,4.05913072]
[1750817316399,0.1391052,2464.3,2464.1,0.7718]
[1750817316599,0.1391052,2464.3,2464.1,4.82997779]
[1750817316799,0.1391052,2464.3,2464.2,4.05811216]
[1750817317576,0.1391052,2464.3,2464.1,5.71883371]
[1750817317781,0.1391052,2464.3,2464.1,0.7718]
[1750817317992,4.19713114,2464.3,2463.8,4.05869234]
[1750817318204,0.1391052,2464.3,2463.9,4.05859762]
[1750817318504,4.19705928,2464.3,2463.8,4.05867906]
[1750817318696,0.1391052,2464.3,2463.9,4.05850771]
[1750817319093,0.1391052,2464.3,2464.0,4.05844155]
[1750817319410,0.1391052,2464.3,2464.2,4.05811216]
[1750817319984,0.1391052,2464.3,2464.1,0.8267]
[1750817321009,0.1391052,2464.3,2464.2,4.05811216]
[1750817321710,0.1391052,2464.3,2464.2,4.85741216]
[1750817321912,0.1391052,2464.3,2464.2,5.74897898]
[1750817322694,0.1391052,2464.3,2464.2,0.7993]
[1750817323293,0.1391052,2464.3,2464.2,4.85741216]
[1750817323814,0.1391052,2464.3,2464.2,5.40741216]
[1750817324212,0.1391052,2464.3,2464.2,15.40741216]
[1750817324390,0.1391052,2464.3,2464.2,22.16541216]
[1750817324596,0.1391052,2464.3,2464.2,24.78778028]
[1750817328689,0.1391052,2464.3,2464.2,7.47978028]
[1750817328889,0.1391052,2464.3,2464.2,4.05811216]
[1750817329396,0.1391052,2464.3,2464.2,5.37421216]
[1750817331734,0.1391052,2464.3,2464.2,25.19519194]
[1750817332429,0.66666667,2465.7,2465.3,0.7655]
[1750817332628,0.66666667,2465.7,2465.6,4.05580791]
[1750817332834,0.66666667,2465.7,2465.3,0.7655]
[1750817333127,4.05605476,2465.5,2464.7,10.0]
[1750817333330,4.05605069,2465.5,2464.9,4.05680067]
[1750817333529,4.81476612,2465.6,2465.0,4.05671287]
[1750817333830,4.05599858,2465.5,2465.0,4.05671287]
[1750817333999,4.05599858,2465.5,2464.9,4.05688102]
[1750817334202,0.7589,2465.6,2465.0,0.81139478]
[1750817334415,0.7589,2465.6,2465.0,4.05667167]
[1750817334610,0.7589,2465.6,2465.1,4.05658726]
[1750817334831,0.7589,2465.6,2465.1,0.798]
[1750817335034,0.7833,2465.8,2465.4,4.05603887]
[1750817335201,0.7833,2465.8,2465.5,4.05589104]
[1750817335397,0.7833,2465.8,2465.5,4.86709971]
[1750817335602,0.0008,2465.9,2465.5,0.81120867]
[1750817335800,0.0008,2465.9,2465.8,4.05547895]
[1750817336310,0.0008,2465.9,2465.7,0.7747]
[1750817336508,0.0008,2465.9,2465.5,4.05587521]
[1750817336736,4.05619808,2465.9,2465.3,4.05617349]
[1750817336941,0.0008,2465.9,2465.3,0.7593]
[1750817337300,0.0008,2465.9,2465.7,4.05559083]
[1750817337598,0.0008,2465.9,2465.8,4.87897895]
[1750817338530,0.0008,2465.9,2465.8,0.8235]
[1750817338712,0.0008,2465.9,2465.8,4.87897895]
[1750817339037,0.0008,2465.9,2465.7,0.8111287]
[1750817339222,0.0008,2465.9,2465.3,9.82097978]
[1750817339223,0.0008,2465.9,2465.5,0.7829]
[1750817339401,0.0008,2465.9,2465.6,1.34039386]
[1750817339603,0.0008,2465.9,2465.8,4.05547895]
[1750817341631,0.0008,2465.9,2465.8,12.18637895]
[1750817343027,0.0008,2465.9,2465.8,22.18637895]
[1750817344148,0.2222399,2466.8,2466.7,4.05399927]
[1750817344339,1.791,2468.8,2466.7,9.77509993]
[1750817344546,0.7956,2468.5,2467.4,4.05284915]
[1750817344725,0.7956,2469.2,2467.7,0.8097]
[1750817344923,0.7956,2469.2,2468.1,0.8097]
[1750817345126,0.29820299,2470.3,2469.2,4.0498947]
[1750817345449,4.05002573,2469.2,2468.9,0.55]
[1750817345661,0.7956,2469.8,2468.8,0.8097]
[1750817345966,0.7956,2469.8,2468.5,0.8097]
[1750817345967,10.0,2469.7,2468.5,0.8097]
[1750817346113,4.04967506,2469.4,2468.6,4.05075731]
[1750817346316,0.7956,2470.1,2468.7,0.48604573]
[1750817346515,10.61657978,2469.2,2467.7,0.8097]
[1750817346813,10.61657978,2469.2,2466.7,19.95837971]
[1750817346814,0.8008,2468.6,2467.2,4.05307351]
[1750817347044,10.8008,2468.4,2467.1,4.85883577]
[1750817347360,4.0523758,2467.7,2467.1,0.8056]
[1750817347557,4.0523758,2467.7,2466.9,6.911]
[1750817347558,0.8008,2467.8,2466.9,6.911]
[1750817347711,0.8008,2467.8,2466.9,8.1285852]
[1750817347712,4.05264697,2467.6,2466.9,8.1285852]
[1750817347915,4.05295288,2467.4,2466.9,8.1285852]
[1750817348136,10.0,2467.6,2466.7,0.8056]
[1750817348349,4.05307176,2467.3,2466.9,0.6]
[1750817348738,4.05324182,2467.2,2466.9,0.6]
[1750817348939,4.05324182,2467.2,2466.2,4.05477632]
[1750817348940,0.7823,2467.2,2466.2,4.05477632]
[1750817349247,0.7823,2467.2,2465.7,0.7791]
[1750817349248,4.0539481,2466.8,2466.1,4.05494066]
[1750817349454,4.0539481,2466.8,2466.2,0.40549407]
[1750817349675,4.05400313,2466.7,2466.2,0.40549407]
[1750817349830,4.05400313,2466.7,2465.7,0.7791]
[1750817349831,4.05400731,2466.7,2465.7,0.7791]
[1750817350147,14.83558518,2467.2,2466.5,4.05421793]
[1750817350148,4.83559485,2467.2,2466.5,4.05421793]
[1750817350648,4.83559485,2467.2,2466.6,4.05413513]
[1750817350830,6.91125181,2467.2,2466.5,4.05426398]
[1750817351038,2.85795696,2467.2,2466.6,4.05415518]
[1750817351234,7.1544816,2468.4,2466.5,0.8204]
[1750817351235,0.7597,2467.8,2466.5,0.8204]
[1750817351435,4.05286868,2467.4,2466.7,4.05387229]
[1750817351744,10.0,2467.5,2466.9,4.05357652]
[1750817351952,0.7872,2468.9,2467.2,0.8116]
[1750817352152,0.7872,2468.9,2467.7,0.55]
[1750817352322,0.7872,2468.9,2467.8,1.948]
[1750817352323,4.83768834,2468.9,2467.8,1.948]
[1750817352653,0.7872,2468.9,2468.1,4.05163646]
[1750817352830,4.83763986,2468.9,2468.1,4.05163646]
[1750817353024,0.7872,2468.9,2468.3,4.05121531]
[1750817353225,1.40120412,2469.3,2468.4,4.05105173]
[1750817353432,1.40120412,2469.3,2467.7,1.13616]
[1750817353433,4.05022276,2469.0,2467.5,0.8116]
[1750817353641,0.7872,2468.8,2467.9,4.05201499]
[1750817353844,14.83778487,2468.8,2467.5,0.8116]
[1750817354038,10.7872,2468.8,2467.5,0.8116]
[1750817354241,10.7872,2468.8,2467.6,4.39069182]
[1750817354242,4.0512596,2468.4,2467.6,4.39069182]
[1750817354439,10.0,2468.6,2467.7,0.33828366]
[1750817354646,14.05127785,2468.4,2467.8,4.05209941]
[1750817355118,10.0,2468.4,2468.0,4.05174081]
[1750817355347,1.4050715,2468.5,2468.0,4.05174081]
[1750817355558,4.05091715,2468.6,2468.0,4.05179635]
[1750817356339,1.947,2468.7,2467.7,0.33828366]
[1750817356543,0.7872,2468.8,2468.3,4.05122349]
[1750817356736,10.7872,2468.8,2468.3,4.05122349]
[1750817356935,6.40250258,2468.9,2468.3,0.8213]
[1750817356936,0.40502228,2468.9,2468.3,0.8213]
[1750817357134,4.66376099,2469.3,2468.7,4.05070461]
[1750817357338,1.7111161,2469.2,2468.5,4.05095375]
[1750817357534,15.76108612,2469.2,2468.5,4.05095375]
[1750817357739,11.7111161,2469.2,2468.6,4.05085435]
[1750817357956,1.7111161,2469.2,2468.7,4.05063475]
[1750817358153,1.7111161,2469.2,2468.3,0.8213]
[1750817358357,0.61400412,2469.3,2468.9,4.05022502]
[1750817358656,0.61400412,2469.3,2468.8,4.05052166]
[1750817358657,0.61400412,2469.3,2469.0,4.0500896]
[1750817358844,0.61400412,2469.3,2469.2,4.0498947]
[1750817359431,0.61400412,2469.3,2468.8,4.05044197]
[1750817359634,4.66378028,2469.3,2468.7,4.05067116]
[1750817359838,4.66378028,2469.3,2467.9,16.778]
[1750817359839,0.78,2469.1,2467.9,9.728]
[1750817360045,4.0506756,2468.8,2468.2,4.05141]
[1750817360261,0.78,2469.1,2468.0,4.05186385]
[1750817360262,4.83009772,2469.1,2468.0,4.05186385]
[1750817360457,0.61400412,2469.3,2468.4,4.05120725]
[1750817360763,0.61400412,2469.3,2469.0,4.0500711]
[1750817360943,0.61400412,2469.3,2469.0,4.05011975]
[1750817361269,0.61400412,2469.3,2468.8,4.05046929]
[1750817361471,0.61400412,2469.3,2469.0,4.05021853]
[1750817362292,0.61400412,2469.3,2468.9,4.05032565]
[1750817362454,4.66374439,2469.3,2468.8,4.05053632]
[1750817362765,4.66374439,2469.3,2468.3,0.55]
[1750817362766,1.48531931,2469.3,2468.3,0.55]
[1750817362947,0.8311,2469.0,2468.3,4.05129911]
[1750817363150,6.8284412,2469.0,2468.3,4.05129911]
[1750817363348,4.05083096,2468.7,2468.1,4.05161316]
[1750817363872,4.05071495,2468.7,2468.2,4.05151854]
[1750817364048,2.7781,2469.0,2468.1,4.05163388]
[1750817364241,4.05063489,2468.8,2468.1,4.05163388]
[1750817364437,0.98271,2468.9,2468.0,4.05186385]
[1750817364643,0.8311,2469.0,2468.5,4.05094693]
[1750817365283,4.88132874,2469.0,2468.5,4.05094693]
[1750817365570,0.8311,2469.0,2468.6,4.05080083]
[1750817366747,4.05010287,2469.1,2468.6,4.05080083]
[1750817367446,4.0498947,2469.2,2468.2,4.05138329]
[1750817367646,4.83011903,2468.6,2468.1,4.05162517]
[1750817367882,4.0510501,2468.5,2468.0,4.05181466]
[1750817368089,4.83012248,2468.6,2468.1,4.05169563]
[1750817368447,4.0506069,2468.8,2467.9,4.88201946]
[1750817368448,4.05063487,2468.8,2468.3,4.05135185]
[1750817369349,4.05063487,2468.8,2468.2,4.05145406]
[1750817369546,9.7612,2468.9,2468.4,4.05108759]
[1750817369881,10.0,2469.0,2468.2,1.3603062]
[1750817370184,14.05023339,2469.0,2468.5,4.05097774]
[1750817371074,13.79149728,2469.2,2468.7,4.05059788]
[1750817371246,13.79149728,2469.2,2468.6,4.05079453]
[1750817371647,4.81249728,2469.2,2468.7,4.05071318]
[1750817372547,4.05005948,2469.1,2468.6,4.05079462]
[1750817372745,4.05041439,2468.9,2468.4,4.0511474]
[1750817372953,4.05030442,2469.0,2468.5,4.05095876]
[1750817373473,4.05044741,2468.9,2468.4,4.05111706]
[1750817374166,4.05026972,2469.0,2468.5,4.0510357]
[1750817374562,4.05041814,2468.9,2468.4,4.05114467]
[1750817374877,4.05113174,2468.5,2468.0,4.05178917]
[1750817375081,4.85413505,2468.8,2468.2,4.05153553]
[1750817375372,0.8035,2468.8,2468.5,4.05089903]
[1750817375575,0.8035,2468.8,2468.4,4.05112205]
[1750817375775,4.85405981,2468.8,2468.3,4.05128386]
[1750817375987,0.8035,2468.8,2468.4,4.05115588]
[1750817376388,10.0,2468.9,2468.4,0.81026339]
[1750817376589,10.0,2468.9,2468.5,4.05095696]
[1750817377254,4.05063528,2468.8,2468.3,4.0513031]
[1750817377450,4.05055087,2468.8,2467.9,0.7958]
[1750817377663,4.05080761,2468.7,2468.1,4.05156012]
[1750817377868,4.84103381,2468.5,2467.9,4.0518654]
[1750817378065,4.84103381,2468.5,2468.0,0.37126801]
[1750817378355,0.7899,2468.5,2467.8,0.55]
[1750817378572,4.05086167,2468.7,2468.2,4.05139759]
[1750817378882,11.8438393,2468.8,2468.3,0.3715489]
[1750817379085,4.05071757,2468.7,2468.3,0.3715489]
[1750817379250,4.05071757,2468.7,2468.3,0.37159872]
[1750817380185,4.05071757,2468.7,2468.4,0.37159872]
[1750817380379,4.05071757,2468.7,2468.5,0.37159872]
[1750817380687,10.0,2468.9,2468.2,4.05139759]
[1750817380688,17.018,2468.9,2468.6,0.37159872]
[1750817380873,17.013,2468.9,2468.7,0.37159872]
[1750817381050,21.06349265,2468.9,2468.8,0.37304287]
[1750817381252,21.06349265,2468.9,2468.3,4.05129923]
[1750817381447,21.06349265,2468.9,2468.4,4.42421319]
[1750817381684,21.06349265,2468.9,2468.5,0.3731042]
[1750817381885,21.06349265,2468.9,2468.4,4.05111786]
[1750817382188,17.013,2468.9,2468.5,4.42411227]
[1750817382388,17.013,2468.9,2468.6,0.37309088]
[1750817382558,17.013,2468.9,2468.7,0.37309088]
[1750817382759,17.013,2468.9,2468.5,4.05102139]
[1750817383074,10.0,2468.9,2468.5,4.05103987]
[1750817383275,17.004,2468.9,2468.6,0.37304527]
[1750817383583,21.05439513,2468.9,2468.7,0.37304527]
[1750817383786,14.05039513,2468.9,2468.4,4.05113101]
[1750817384092,21.05241978,2468.9,2468.5,0.37312873]
[1750817384381,21.05241978,2468.9,2468.6,0.37322175]
[1750817384697,4.05055087,2468.8,2468.3,4.05135467]
[1750817384881,4.05055087,2468.8,2468.4,0.37330224]
[1750817385087,4.05055087,2468.8,2468.5,0.37330224]
[1750817385269,4.05055087,2468.8,2467.8,4.60203085]
[1750817385270,0.819,2468.1,2467.6,4.05241613]
[1750817385459,4.87075068,2468.1,2467.7,0.37364014]
[1750817385654,4.87075068,2468.1,2467.8,0.37364014]
[1750817385860,4.8707527,2468.1,2467.9,0.37364014]
[1750817386163,0.819,2468.1,2467.6,4.05239621]
[1750817386367,4.87075555,2468.1,2467.7,0.37376236]
[1750817386568,4.87075555,2468.1,2467.8,0.37376236]
[1750817386888,4.87075555,2468.1,2467.9,0.37385437]
[1750817387068,4.87075555,2468.1,2468.0,0.37383708]
[1750817387593,4.87075555,2468.1,2467.1,10.8304]
[1750817387594,4.87078733,2468.1,2467.6,4.0524913]
[1750817387795,7.846,2468.1,2467.7,0.77908621]
[1750817387964,7.846,2468.1,2467.8,0.37383708]
[1750817388284,7.846,2468.1,2467.7,4.05226973]
[1750817388490,7.846,2468.1,2467.8,0.37331372]
[1750817388690,7.846,2468.1,2467.9,0.37331372]
[1750817388890,7.846,2468.1,2467.7,4.05226973]
[1750817389081,7.846,2468.1,2467.8,0.37332181]
[1750817389082,11.89774828,2468.1,2467.8,0.37332181]
[1750817389278,7.846,2468.1,2467.9,0.37332181]
[1750817389478,7.846,2468.1,2467.7,4.05230806]
[1750817389671,7.024,2468.0,2467.8,0.37331218]
[1750817389869,7.024,2468.0,2467.7,4.05230806]
[1750817390073,7.024,2468.0,2467.8,0.37334092]
[1750817390297,7.024,2468.0,2467.7,4.05230806]
[1750817390462,7.024,2468.0,2467.8,0.37311246]
[1750817390663,7.024,2468.0,2467.7,4.05230806]
[1750817390862,7.024,2468.0,2467.8,0.37310532]
[1750817391184,7.024,2468.0,2467.7,4.05230806]
[1750817391584,7.012,2468.1,2467.9,4.05192464]
[1750817392102,0.7861,2468.8,2467.9,0.7618]
[1750817392398,0.7861,2470.1,2469.2,4.8116947]
[1750817392710,1.20885588,2470.9,2469.4,0.7618]
[1750817392906,4.04759977,2470.6,2469.5,0.37220327]
[1750817393200,10.0,2470.4,2469.6,0.92237406]
[1750817393363,4.04873148,2470.0,2469.4,0.37237406]
[1750817393568,7.045,2470.0,2469.4,0.55]
[1750817393770,4.04951932,2469.5,2469.2,0.55]
[1750817393966,7.043,2469.5,2469.2,0.33807816]
[1750817394173,10.0,2469.3,2469.2,0.33807816]
[1750817394373,4.04973069,2469.3,2469.2,0.33807816]
[1750817394578,10.0,2469.4,2469.2,0.33807816]
[1750817394806,6.15897494,2469.3,2469.2,0.33807816]
[1750817395693,2.10924425,2469.3,2469.2,0.33807816]
[1750817395895,10.0,2469.7,2469.2,0.33807816]
[1750817396203,10.0,2469.5,2469.2,0.33807816]
[1750817396374,14.04941002,2469.5,2469.2,0.33807816]
[1750817396695,10.0,2469.5,2469.2,0.33807816]
[1750817397062,10.0,2469.5,2469.0,4.05020475]
[1750817398098,7.046,2469.4,2468.9,4.05032247]
[1750817398302,11.09559378,2469.4,2468.8,4.05048053]
[1750817398475,4.05001288,2469.2,2468.4,0.55]
[1750817398803,4.05033185,2469.0,2468.3,3.10596504]
[1750817399001,4.05047721,2468.9,2468.3,0.7894]
[1750817399377,4.05093857,2468.6,2468.3,0.7894]
[1750817400275,4.0502803,2469.0,2468.3,0.7894]
[1750817400600,11.08506888,2469.1,2468.3,6.52894834]
[1750817400768,7.034,2469.1,2468.4,0.3716808]
[1750817400973,4.05024337,2469.0,2468.3,6.52897725]
[1750817401168,4.05041201,2468.9,2468.3,2.47766899]
[1750817401400,4.05041201,2468.9,2468.0,0.7967]
[1750817401401,4.05112536,2468.5,2468.0,0.7967]
[1750817401698,4.05164181,2468.2,2467.7,0.81049311]
[1750817401899,4.05170706,2468.1,2467.6,4.05247834]
[1750817402081,4.05170706,2468.1,2467.5,4.84932712]
[1750817402269,4.05193167,2468.0,2467.5,0.7967]
[1750817402469,4.05193167,2468.0,2467.2,1.945]
[1750817402470,10.0,2468.2,2467.6,4.39072799]
[1750817402689,4.05181191,2468.1,2467.6,0.33829737]
[1750817402895,0.7829,2468.6,2467.8,4.05208049]
[1750817403073,10.7829,2468.6,2468.1,4.05157016]
[1750817403277,4.05104314,2468.5,2467.8,0.7969]
[1750817403482,10.7829,2468.6,2467.6,0.33829737]
[1750817403483,4.05162705,2468.2,2467.6,4.39076335]
[1750817403697,4.05162705,2468.2,2467.7,4.05234904]
[1750817403903,4.05168036,2468.2,2467.6,4.39080608]
[1750817404217,4.45684907,2468.2,2467.6,4.05250871]
[1750817404383,4.4568,2468.2,2467.6,4.05250871]
[1750817404583,10.7829,2468.6,2467.5,0.7969]
[1750817404789,4.05145102,2468.3,2467.7,4.05224783]
[1750817405106,4.0513102,2468.4,2467.8,4.05218281]
[1750817405310,11.0963899,2468.3,2467.8,4.05218281]
[1750817405694,7.045,2468.3,2467.8,4.05218281]
[1750817405888,4.05172272,2468.1,2467.6,4.05249986]
[1750817406090,4.05184766,2468.1,2467.5,4.84953244]
[1750817406404,4.05197162,2468.0,2467.5,4.84953244]
[1750817406590,4.05209425,2467.9,2467.2,4.05315068]
[1750817406788,10.8279,2467.9,2467.2,0.7636]
[1750817406989,14.05236006,2467.7,2467.2,4.81669542]
[1750817407202,0.81040659,2467.8,2467.3,4.05301341]
[1750817407399,0.81040659,2467.8,2467.4,4.05270177]
[1750817407400,7.044,2467.8,2467.4,4.05270177]
[1750817407981,10.0,2467.9,2467.5,4.05266727]
[1750817408199,10.0,2467.9,2467.6,4.05245978]
[1750817408575,0.7839,2468.2,2467.6,0.81052522]
[1750817408799,7.04,2468.3,2467.8,4.05205758]
[1750817408973,10.0,2468.2,2467.3,1.945]
[1750817409418,10.0,2468.2,2467.7,4.05224424]
[1750817409626,11.0914585,2468.3,2467.7,0.7886]
[1750817409627,7.04,2468.3,2467.7,0.7886]
[1750817409784,7.04,2468.3,2468.1,4.05168116]
[1750817410300,7.04,2468.3,2467.9,4.05195844]
[1750817410301,7.04,2468.3,2468.0,4.05178297]
[1750817410883,21.92026123,2468.5,2468.0,4.05178297]
[1750817411522,0.8991,2470.0,2468.0,0.81039525]
[1750817411523,10.4757,2468.8,2468.0,0.81039525]
[1750817411680,7.042,2468.5,2468.2,4.05141074]
[1750817412016,7.042,2468.5,2468.1,4.05162375]
[1750817412517,21.088822,2468.7,2468.1,4.05161177]
[1750817412689,21.084822,2468.7,2468.2,4.05151519]
[1750817412894,14.050822,2468.7,2468.2,4.05151519]
[1750817413095,10.0,2468.7,2468.3,4.85805716]
[1750817413284,4.05071887,2468.7,2468.3,0.8067]
[1750817413681,4.05071887,2468.7,2468.2,4.05145824]
[1750817413876,2.51332887,2468.7,2468.0,1.58419525]
[1750817414120,0.7782,2468.6,2468.0,0.7738]
[1750817414419,4.82916161,2468.6,2468.1,4.05159813]
[1750817414617,0.7782,2468.6,2468.1,4.05159813]
[1750817414844,7.03,2468.7,2468.3,4.05133766]
[1750817415113,7.03,2468.7,2468.1,4.05161579]
[1750817415292,4.05088541,2468.6,2468.1,4.05161579]
[1750817415684,11.08079986,2468.7,2468.2,4.05153484]
[1750817415881,7.03,2468.7,2468.2,4.0515321]
[1750817416102,10.0,2468.8,2468.1,0.48254158]
[1750817416309,4.05091736,2468.6,2468.1,4.05159604]
[1750817416475,4.05104783,2468.5,2468.0,4.82558077]
[1750817417519,7.024,2468.8,2468.0,0.7738]
[1750817417827,4.05081342,2468.7,2468.2,4.05143872]
[1750817418288,4.05088676,2468.6,2468.1,4.05160624]
[1750817418485,4.05072023,2468.7,2468.2,4.05153553]
[1750817418725,17.024,2468.8,2468.1,4.93937158]
[1750817419022,17.024,2468.8,2468.0,4.82562267]
[1750817419023,4.05095749,2468.6,2468.0,4.82562267]
[1750817419400,17.024,2468.8,2468.3,4.05123455]